{"text_format":"3","workbook":"xlsx","n_sheets":2,"sheets":["Managed-maintenance","Full Maintenane Lease"],"not_rendered":{"defined_names":1},"read":"whole","date_system":"1900"}

{"sheet":"Managed-maintenance","index":0,"n_rows":129,"n_cols":11,"rows_kept":129,"merged":[[0,0,0,1],[0,3,0,10],[1,0,1,1],[1,3,1,10],[2,0,2,1],[2,3,2,10],[4,0,4,1],[6,0,65,0],[7,1,65,1],[66,0,66,4],[67,0,67,1],[68,1,68,2],[69,1,69,2],[70,0,70,4],[71,0,71,1],[72,1,72,2],[73,0,76,0],[74,1,74,2],[75,1,75,2],[76,1,76,2],[77,0,77,3],[80,0,80,2],[86,0,86,1],[87,1,87,5],[87,6,87,10],[88,6,88,7],[89,3,90,3],[89,4,90,4],[89,5,90,5],[89,6,89,7],[89,8,90,8],[89,9,90,9],[89,10,90,10],[90,6,90,7],[92,0,92,1],[93,0,93,4],[98,0,99,0],[98,4,99,4],[103,0,104,0],[103,1,104,1],[103,3,104,3],[103,4,104,4],[106,0,108,0],[106,4,108,4],[110,0,111,0],[115,0,118,0],[120,0,121,0],[128,0,128,1]]}
["GNP-067-23 "]
["SOUTH AFRICAN NATIONAL PARKS"]
["BIDDER'S NAME"]
[]
["Table 1: Managed-Maintenance Fee"]
["Item no","Description","Category Number \n(Annexure 6)","Category of vehicles (Annexure 6)","Current Quantity","Unit Cost per month  per Vehicle/ Asset\n(incl VAT)","Total Year 1"]
[1,"Management fee per vehicle :",10,"Cars 1400cc - 1800cc Petrol",1,null,{"$f":"(E7*F7)*12","v":{"v":0,"d":"R 0.00"}}]
[null," - Fleet administration, maintenance and Booking - Management system\n- Vehicle telematics – tracking devices and biometric systems to support contract administration of vehicles, sms notifications to Fleet Management\n- Day to Day managed maintenance\n- Managed maintenance and authorised, scheduled Vehicle services\n- Traffic Fine Management\n- Licence renewal\n- Liaising and administration of Insurance and claims\n- Monthly and quarterly reporting\n-  Billing supporting information and reports","10a","Cars 1500cc Petrol",1,null,{"$f":"(E8*F8)*12","v":{"v":0,"d":"R 0.00"}}]
[null,null,"10b","Cars 1800cc Petrol",1,null,{"v":0,"d":"R 0.00"}]
[null,null,11,"SUV: Petrol",1,null,{"$f":"(E10*F10)*12","v":{"v":0,"d":"R 0.00"}}]
[null,null,30,"LDV 1 ton Petrol",1,null,{"v":0,"d":"R 0.00"}]
[null,null,31,"LDV 1 ton with canopy: Petrol",1,null,{"v":0,"d":"R 0.00"}]
[null,null,32,"LDV Diesel (with Diff lock)",1,null,{"v":0,"d":"R 0.00"}]
[null,null,33,"LDV 4X4 Petrol D/Cab",1,null,{"v":0,"d":"R 0.00"}]
[null,null,34,"LDV 4X4 Petrol D/Cab + Canopy",1,null,{"v":0,"d":"R 0.00"}]
[null,null,40,"LDV 4x4: Petrol S/Cab",1,null,{"v":0,"d":"R 0.00"}]
[null,null,41,"LDV 4x4: Diesel S/Cab",1,null,{"v":0,"d":"R 0.00"}]
[null,null,42,"LDV 4x4 9 Seater Game Viewer: Petrol",1,null,{"v":0,"d":"R 0.00"}]
[null,null,43,"LDV 4x4 D/Cab: Petrol",1,null,{"v":0,"d":"R 0.00"}]
[null,null,44,"LDV 4x4 D/Cab: Diesel",1,null,{"v":0,"d":"R 0.00"}]
[null,null,45,"LDV 4x4 Land cruiser",1,null,{"v":0,"d":"R 0.00"}]
[null,null,46,"LDV 4x4 Land cruiser Diesel: Game Capture Conversion",1,null,{"v":0,"d":"R 0.00"}]
[null,null,47,"LDV 4x4 Land cruiser Diesel: Game Viewing Conversion",1,null,{"v":0,"d":"R 0.00"}]
[null,null,48,"LDV 4x4 Land Cruiser: Diesel Game Viewing Conversion (5+5)",1,null,{"v":0,"d":"R 0.00"}]
[null,null,50,"Ambulance 4 ton vehicle, only Chassy & Cab",1,null,{"v":0,"d":"R 0.00"}]
[null,null,51,"Medium Trucks 3 ton: Drop sides",1,null,{"v":0,"d":"R 0.00"}]
[null,null,52,"Medium Trucks 3 ton: Tipper Conversion",1,null,{"v":0,"d":"R 0.00"}]
[null,null,53,"Medium Trucks 4 ton: Drop sides",1,null,{"v":0,"d":"R 0.00"}]
[null,null,54,"Medium Trucks 4 ton: Tipper Conversion",1,null,{"v":0,"d":"R 0.00"}]
[null,null,55,"Medium Trucks 4 ton Diesel , 23 seater Game Viewer",1,null,{"v":0,"d":"R 0.00"}]
[null,null,56,"Medium Trucks 4 ton, Diesel 23 seater Game Viewer",1,null,{"v":0,"d":"R 0.00"}]
[null,null,57,"Medium Trucks 4 ton: Tipper Conversion",1,null,{"v":0,"d":"R 0.00"}]
[null,null,60,"Medium Trucks 6 ton vehicle, only Chassy & Cab",1,null,{"v":0,"d":"R 0.00"}]
[null,null,61,"Medium Trucks 6 ton: Drop sides",1,null,{"v":0,"d":"R 0.00"}]
[null,null,62,"Medium Trucks 6 ton: Tipper Conversion",1,null,{"v":0,"d":"R 0.00"}]
[null,null,70,"Heavy Trucks 8 ton: Drop sides",1,null,{"v":0,"d":"R 0.00"}]
[null,null,71,"Heavy Trucks 8 ton: Tipper Conversion",1,null,{"v":0,"d":"R 0.00"}]
[null,null,72,"Heavy Trucks 8 ton vehicle, only Chassis & Cab",1,null,{"v":0,"d":"R 0.00"}]
[null,null,73,"Heavy Truck 10 ton Truck Tractor",1,null,{"v":0,"d":"R 0.00"}]
[null,null,74,"Heavy Truck - 12 ton Truck Tractor",1,null,{"v":0,"d":"R 0.00"}]
[null,null,75,"Heavy Trucks 8 ton: Drop sides",1,null,{"v":0,"d":"R 0.00"}]
[null,null,76,"Heavy Trucks 10 ton: Tipper Conversion",1,null,{"v":0,"d":"R 0.00"}]
[null,null,80,"Bus 23 - 28 seater: Commuter",1,null,{"v":0,"d":"R 0.00"}]
[null,null,81,"Bus 23 - 28 Seater: Semi Luxury (with aircon)",1,null,{"v":0,"d":"R 0.00"}]
[null,null,82,"MAN bus (75 - 80) seater",1,null,{"v":0,"d":"R 0.00"}]
[null,null,83,"Minibus (16 seater)",1,null,{"v":0,"d":"R 0.00"}]
[null,null,84,"Minibus (18 seater luxury )",1,null,{"v":0,"d":"R 0.00"}]
[null,null,85,"Minibus (16 seater)",1,null,{"v":0,"d":"R 0.00"}]
[null,null,90,"MAN Game Capture 4x4: Rigid Truck",1,null,{"v":0,"d":"R 0.00"}]
[null,null,91,"MAN Game Capture 6x4: Truck - Tractor",1,null,{"v":0,"d":"R 0.00"}]
[null,null,92,"MAN Game Capture 6x6: Rigid Truck",1,null,{"v":0,"d":"R 0.00"}]
[null,null,93,"Heavy Truck 12 ton: Truck Tractor",1,null,{"v":0,"d":"R 0.00"}]
[null,null,94,"Heavy Truck 10 ton: Fire Engine",1,null,{"v":0,"d":"R 0.00"}]
[null,null,95,"Heavy Truck 6 - 8 ton: 4x4",1,null,{"v":0,"d":"R 0.00"}]
[null,null,96,"MAN 18.224A Heavy truck: Fire fighting",1,null,{"v":0,"d":"R 0.00"}]
[null,null,100,"Motor Cycle: > 150cc",1,null,{"v":0,"d":"R 0.00"}]
[null,null,101,"Motor Cycle: < 400cc",1,null,{"v":0,"d":"R 0.00"}]
[null,null,110,"Tractor: Small (Kubota type)",1,null,{"v":0,"d":"R 0.00"}]
[null,null,111,"Tractor Light & Medium (Massey Ferguson 240 type)",1,null,{"v":0,"d":"R 0.00"}]
[null,null,112,"Tractor Heavy (CASE AVJ80 type)",1,null,{"v":0,"d":"R 0.00"}]
[null,null,113,"Tractor Heavy (4x4 - CASE MX 135 type)",1,null,{"v":0,"d":"R 0.00"}]
[null,null,114,"Golf Carts - Battery driven",1,null,{"v":0,"d":"R 0.00"}]
[null,null,115,"Golf Carts - Battery driven",1,null,{"v":0,"d":"R 0.00"}]
[null,null,116,"Golf Carts - Battery driven",1,null,{"v":0,"d":"R 0.00"}]
[null,null,117,"Tractor Light & Medium (CASE PJN 75 type)",1,null,{"v":0,"d":"R 0.00"}]
[null,null,149,"Boat Stingray Semi Rigid & Trailer",1,null,{"v":0,"d":"R 0.00"}]
[]
["Table 2: Dedicated Resource"]
["Item no","Description",null,"Quantity","Unit Cost per month \n(incl VAT)","Total Year 1"]
[1,"Onsite Consutant ",null,2,null,{"$f":"E70*12","v":{"v":0,"d":"R 0.00"}}]
[]
["Table 3: Card Management Fee"]
["Item no","Description",null,"Quantity","Unit Cost per month \n(incl VAT)","Total Year 1"]
[1,"Fee per vehicle"]
[null,"·         Fuel/Electric vehicle card fees",null,1,null,{"$f":"(D75*E75)*12","v":{"v":0,"d":"R 0.00"}}]
[null,"·         E-Tag",null,1,null,{"$f":"(D76*E76)*12","v":{"v":0,"d":"R 0.00"}}]
[null,"·         Lost E-Tag",null,1,null,{"v":0,"d":"R 0.00"}]
["Total Card Management Fee",{"$nulls":3},{"$f":"SUM(E75:E77)","v":{"v":0,"d":"R 0.00"}},{"$f":"SUM(F75:F77)","v":{"v":0,"d":"R 0.00"}}]
[]
[]
["Table 4: Once-Off Cost at Start and Termination of Contract"]
["Item no","Description",null,"Quantity","Unit Cost per vehicle/ asset\n (incl VAT)","Total Fee\n (incl VAT) "]
[1,"Once off fee per installation of new tracking device (start of contract)",null,1,null,{"$f":"D83*E83","v":{"v":0,"d":"R 0.00"}}]
[2,"Once-off fee removal of old tracking device (Start of contract)",null,1,null,{"$f":"D84*E84","v":{"v":0,"d":"R 0.00"}}]
[3,"Once-off fee removal of old tracking device (End of contract)",null,1,null,{"$f":"D85*E85","v":{"v":0,"d":"R 0.00"}}]
[]
["Table 5: Tracking Device Management Service "]
[null,"Monthly Lease/Rental Fee",{"$nulls":4},"Outright Purchase "]
[null,"Description",null,"Quantity","Monthly Rental per vehicle/ asset\n(Incl VAT)","Total monthly fee\n (incl VAT) ","Description",null,"Quantity","Unit Cost\n(incl VAT) per vehicle/ asset","Total Purchase Price (incl VAT) "]
[null,"Monthly Rental fee of tracking device - Service should  include as a minimum the following :",null,1,null,{"$f":"D90*E90","v":{"v":0,"d":"R 0.00"}},"Outright purchase of tracking device * ",null,1,null,{"$f":"I90*J90","v":{"v":0,"d":"R 0.00"}}]
[null,"     - Tracking Service fee\n     - 24-hour Roadside assist\n     - Guarantee (if required)\n     - Licence, Support and Maintenance of devices\n     - Training",{"$nulls":4}," - Guarantee\n- Manufacturer's warranty\n- Free replacement of faulty / defective devices.\n- Licences and software updates,\n- Support, Repairs and Maintenance of devices\n  - Training "]
[]
["Table 6: Ad-Hoc Service Requests"]
["Service Fee per Incident/Event"]
["Item no","Description",null,"Quantity","Service fee (incl VAT) per vehicle/ asset/ transaction"]
[1,"Incident fee per incident (High jacked/ Accident/ Stolen)",null,1]
[2,"Miscellaneous claims per incident i.e. windscreen repairs",null,1]
[]
[3,"Lost and stolen replacement fuel cards",null,1]
[null,"Lost and replace E-Tag cost",null,1]
[]
[4,"Lost/Stolen replacement of Driver's Tag (If Applicable)",null,1]
[]
[5,"Vehicle disposals",null,1]
[]
[]
[6,"Re-direct traffic fine to traffic authority (per fine)",null,1]
[null,"BRN( Business Registration Number) clean-up ",null,1]
[null,"Pay and rebill fine cost (per fine)",null,1]
[]
[7,"Duplicate registration certificate cost",null,1]
[null,"Duplicate License Disk cost",null,2]
[]
[8,"Annual vehicle inspection",null,1]
[]
[9,"Cross border support:"]
[null,"·         Vehicle recovery ",null,1]
[null,"·         Transportation cost",null,1]
[null,"·         Evacuation in case of Emergency",null,1]
[]
[10,"Installation fee per unit (excluding mass change at start and termination of contract)",null,1]
[null,"De-installation fee per unit (excluding mass change at start and termination of contract)",null,1]
[]
[11,"Salvage of vehicles - Administration fee",null,1]
[]
[]
[]
[]
["Company Representative Name",{"$nulls":3},"Role in Company",null,"Signature",null,"Date"]

{"sheet":"Full Maintenane Lease","index":1,"n_rows":63,"n_cols":9,"rows_kept":63}
[]
["Table 7: Fleet Management Fee"]
["Item no","Description","Category Number \n(Annexure 6)","Category of vehicles (Annexure 6)","Standard kms/hrs per month (included in rental)","Quantity","Monthly rental rate\n(incl VAT)","Total Year 1","Excess rate per km/hr (over standard kms/hrs)\n(incl VAT)"]
[1,"Full Maintenance Lease (Rentals) :",10,"Cars 1400cc Petrol",3000,1,null,{"$f":"(F4*G4)*12","v":{"v":0,"d":"R 0.00"}}]
[null,"•\tFull Maintenance Lease, at a monthly rental (including all costs)","10a","Cars 1500cc Petrol",3000,1,null,{"v":0,"d":"R 0.00"}]
[null,null,"10b","Cars 1800cc Petrol",3000,1,null,{"v":0,"d":"R 0.00"}]
[null,null,11,"SUV: Petrol",3000,1,null,{"v":0,"d":"R 0.00"}]
[null,null,30,"LDV 1 ton Petrol",3000,1,null,{"v":0,"d":"R 0.00"}]
[null,null,31,"LDV 1 ton with canopy: Petrol",3000,1,null,{"v":0,"d":"R 0.00"}]
[null,null,32,"LDV Diesel (with Diff lock)",3000,1,null,{"v":0,"d":"R 0.00"}]
[null,null,33,"LDV 4X4 Petrol D/Cab",3000,1,null,{"v":0,"d":"R 0.00"}]
[null,null,34,"LDV 4X4 Petrol D/Cab + Canopy",3000,1,null,{"v":0,"d":"R 0.00"}]
[null,null,40,"LDV 4x4: Petrol S/Cab",3000,1,null,{"v":0,"d":"R 0.00"}]
[null,null,41,"LDV 4x4: Diesel S/Cab",3000,1,null,{"v":0,"d":"R 0.00"}]
[null,null,42,"LDV 4x4 9 Seater Game Viewer: Petrol",3000,1,null,{"v":0,"d":"R 0.00"}]
[null,null,43,"LDV 4x4 D/Cab: Petrol",3000,1,null,{"v":0,"d":"R 0.00"}]
[null,null,44,"LDV 4x4 D/Cab: Diesel",3000,1,null,{"v":0,"d":"R 0.00"}]
[null,null,45,"LDV 4x4 Land cruiser",3000,1,null,{"v":0,"d":"R 0.00"}]
[null,null,46,"LDV 4x4 Land cruiser Diesel: Game Capture Conversion",3000,1,null,{"v":0,"d":"R 0.00"}]
[null,null,47,"LDV 4x4 Land cruiser Diesel: Game Viewing Conversion",3000,1,null,{"v":0,"d":"R 0.00"}]
[null,null,48,"LDV 4x4 Land Cruiser: Diesel Game Viewing Conversion (5+5)",3000,1,null,{"v":0,"d":"R 0.00"}]
[null,null,50,"Ambulance 4 ton vehicle, only Chassy & Cab",3000,1,null,{"v":0,"d":"R 0.00"}]
[null,null,51,"Medium Trucks 3 ton: Drop sides",3000,1,null,{"v":0,"d":"R 0.00"}]
[null,null,52,"Medium Trucks 3 ton: Tipper Conversion",3000,1,null,{"v":0,"d":"R 0.00"}]
[null,null,53,"Medium Trucks 4 ton: Drop sides",3000,1,null,{"v":0,"d":"R 0.00"}]
[null,null,54,"Medium Trucks 4 ton: Tipper Conversion",3000,1,null,{"v":0,"d":"R 0.00"}]
[null,null,55,"Medium Trucks 4 ton Diesel , 23 seater Game Viewer",3000,1,null,{"v":0,"d":"R 0.00"}]
[null,null,56,"Medium Trucks 4 ton, Diesel 23 seater Game Viewer",3000,1,null,{"v":0,"d":"R 0.00"}]
[null,null,57,"Medium Trucks 4 ton: Tipper Conversion",3000,1,null,{"v":0,"d":"R 0.00"}]
[null,null,60,"Medium Trucks 6 ton vehicle, only Chassy & Cab",3000,1,null,{"v":0,"d":"R 0.00"}]
[null,null,61,"Medium Trucks 6 ton: Drop sides",3000,1,null,{"v":0,"d":"R 0.00"}]
[null,null,62,"Medium Trucks 6 ton: Tipper Conversion",3000,1,null,{"v":0,"d":"R 0.00"}]
[null,null,70,"Heavy Trucks 8 ton: Drop sides",3000,1,null,{"v":0,"d":"R 0.00"}]
[null,null,71,"Heavy Trucks 8 ton: Tipper Conversion",3000,1,null,{"v":0,"d":"R 0.00"}]
[null,null,72,"Heavy Trucks 8 ton vehicle, only Chassis & Cab",3000,1,null,{"v":0,"d":"R 0.00"}]
[null,null,73,"Heavy Truck 10 ton Truck Tractor",3000,1,null,{"$f":"(F36*G36)*12","v":{"v":0,"d":"R 0.00"}}]
[null,null,74,"Heavy Truck - 12 ton Truck Tractor",3000,1,null,{"v":0,"d":"R 0.00"}]
[null,null,75,"Heavy Trucks 8 ton: Drop sides",3000,1,null,{"v":0,"d":"R 0.00"}]
[null,null,76,"Heavy Trucks 10 ton: Tipper Conversion",3000,1,null,{"v":0,"d":"R 0.00"}]
[null,null,80,"Bus 23 - 28 seater: Commuter",5000,1,null,{"v":0,"d":"R 0.00"}]
[null,null,81,"Bus 23 - 28 Seater: Semi Luxury (with aircon)",5000,1,null,{"v":0,"d":"R 0.00"}]
[null,null,82,"MAN bus (75 - 80) seater",7000,1,null,{"v":0,"d":"R 0.00"}]
[null,null,83,"Minibus (16 seater)",5000,1,null,{"v":0,"d":"R 0.00"}]
[null,null,84,"Minibus (18 seater luxury )",3000,1,null,{"v":0,"d":"R 0.00"}]
[null,null,85,"Minibus (16 seater)",3000,1,null,{"v":0,"d":"R 0.00"}]
[null,null,90,"MAN Game Capture 4x4: Rigid Truck",3000,1,null,{"v":0,"d":"R 0.00"}]
[null,null,91,"MAN Game Capture 6x4: Truck - Tractor",3000,1,null,{"v":0,"d":"R 0.00"}]
[null,null,92,"MAN Game Capture 6x6: Rigid Truck",3000,1,null,{"v":0,"d":"R 0.00"}]
[null,null,93,"Heavy Truck 12 ton: Truck Tractor",3000,1,null,{"v":0,"d":"R 0.00"}]
[null,null,94,"Heavy Truck 10 ton: Fire Engine",1000,1,null,{"v":0,"d":"R 0.00"}]
[null,null,95,"Heavy Truck 6 - 8 ton: 4x4",3000,1,null,{"v":0,"d":"R 0.00"}]
[null,null,96,"MAN 18.224A Heavy truck: Fire fighting",3000,1,null,{"v":0,"d":"R 0.00"}]
[null,null,100,"Motor Cycle: > 150cc",1500,1,null,{"v":0,"d":"R 0.00"}]
[null,null,101,"Motor Cycle: < 400cc",1500,1,null,{"v":0,"d":"R 0.00"}]
[null,null,110,"Tractor: Small (Kubota type)","180hrs",1,null,{"v":0,"d":"R 0.00"}]
[null,null,111,"Tractor Light & Medium (Massey Ferguson 240 type)","180hrs",1,null,{"v":0,"d":"R 0.00"}]
[null,null,112,"Tractor Heavy (CASE AVJ80 type)","180hrs",1,null,{"v":0,"d":"R 0.00"}]
[null,null,113,"Tractor Heavy (4x4 - CASE MX 135 type)","180hrs",1,null,{"v":0,"d":"R 0.00"}]
[null,null,114,"Golf Carts - Battery driven","N/A",1,null,{"v":0,"d":"R 0.00"}]
[null,null,115,"Golf Carts - Battery driven","N/A",1,null,{"v":0,"d":"R 0.00"}]
[null,null,116,"Golf Carts - Battery driven","N/A",1,null,{"v":0,"d":"R 0.00"}]
[null,null,117,"Tractor Light & Medium (CASE PJN 75 type)","180hrs",1,null,{"v":0,"d":"R 0.00"}]
[null,null,149,"Boat Stingray Semi Rigid & Trailer","N/A",1,null,{"v":0,"d":"R 0.00"}]